bitfinex-derivatives/quotes_BTCF0:USTF0_20260315
["timestamp","ask_amount","ask_price","bid_price","bid_amount"]
[1773597449697,0.043111,71913.0,71902.0,0.041716]
[1773597449698,0.0014,71913.0,71902.0,0.041716]
[1773597450092,0.0014,71913.0,71903.0,0.041716]
[1773597452603,0.0014,71913.0,71901.0,0.041717]
[1773597452790,0.08711115,71911.0,71898.0,0.0777124]
[1773597453101,0.041716,71903.0,71890.0,0.041723]
[1773597453297,0.0014,71903.0,71895.0,0.0777124]
[1773597453499,0.0014,71907.0,71903.0,0.0777124]
[1773597453798,0.0014,71911.0,71904.0,0.0777124]
[1773597454099,0.0014,71910.0,71904.0,0.0777124]
[1773597454295,0.0014,71909.0,71904.0,0.0777124]
[1773597454496,0.0014,71908.0,71904.0,0.0777124]
[1773597454689,0.0014,71907.0,71904.0,0.0777124]
[1773597455601,0.0014,71915.0,71909.0,0.0777124]
[1773597459000,0.0014,71915.0,71909.0,0.1194244]
[1773597459204,0.0014,71915.0,71910.0,0.0777124]
[1773597459707,0.0014,71915.0,71897.0,0.0014]
[1773597459708,0.041704,71924.0,71914.0,0.0777124]
[1773597459905,0.08711115,71930.0,71914.0,0.0777124]
[1773597459906,0.0014,71923.0,71914.0,0.0777124]
[1773597460101,0.0014,71922.0,71914.0,0.0777124]
[1773597461305,0.0014,71921.0,71914.0,0.0777124]
[1773597461807,0.0014,71920.0,71907.0,0.041714]
[1773597461998,0.0014,71919.0,71908.0,0.0777124]
[1773597462202,0.0014,71918.0,71908.0,0.1194254]
[1773597462510,0.0014,71917.0,71909.0,0.0777124]
[1773597462691,0.0014,71917.0,71909.0,0.1194244]
[1773597462891,0.0014,71916.0,71911.0,0.0777124]
[1773597463095,0.0014,71915.0,71911.0,0.0777124]
[1773597464100,0.0014,71916.0,71911.0,0.0777124]
[1773597464896,0.0014,71916.0,71911.0,0.1194234]
[1773597465095,0.0014,71915.0,71912.0,0.0777124]
[1773597465609,0.0014,71923.0,71917.0,0.0777124]
[1773597465909,0.0014,71922.0,71919.0,0.0777124]
[1773597466808,0.0014,71922.0,71917.0,0.041708]
[1773597467009,0.0014,71922.0,71918.0,0.0777124]
[1773597467203,0.0014,71922.0,71917.0,0.041708]
[1773597467708,0.0014,71922.0,71917.0,0.1194204]
[1773597468008,0.0014,71922.0,71906.0,0.0777124]
[1773597468200,0.0014,71922.0,71901.0,0.0777124]
[1773597468402,0.0014,71922.0,71917.0,0.0777124]
[1773597469301,0.0014,71922.0,71914.0,0.041709]
[1773597469698,0.0014,71922.0,71914.0,0.1194214]
[1773597470196,0.0014,71922.0,71914.0,0.041709]
[1773597470398,0.0014,71922.0,71917.0,0.0777124]
[1773597470709,0.0014,71922.0,71914.0,0.04171]
[1773597472105,0.041706,71921.0,71909.0,0.041712]
[1773597472405,0.0014,71922.0,71910.0,0.041712]
[1773597472808,0.0014,71922.0,71892.0,0.16421055]
[1773597472809,0.08711115,71920.0,71892.0,0.0726471]
[1773597473111,0.08711115,71920.0,71909.0,0.041712]
[1773597473410,0.08711115,71920.0,71900.0,0.0726471]
[1773597473601,0.08711115,71920.0,71909.0,0.041712]
[1773597476200,0.07413701,71919.0,71898.0,0.041719]
[1773597476400,0.0014,71922.0,71893.0,0.0726471]
[1773597476401,0.08711115,71910.0,71893.0,0.0726471]
[1773597476704,0.041713,71908.0,71895.0,0.04172]
[1773597477406,0.041713,71908.0,71893.0,0.1143691]
[1773597477603,0.041713,71908.0,71894.0,0.041721]
[1773597478001,0.08711115,71904.0,71891.0,0.041723]
[1773597478203,0.043113,71909.0,71883.0,0.0726471]
[1773597478511,0.041714,71908.0,71884.0,0.0726471]
[1773597478715,0.041714,71907.0,71893.0,0.0726471]
[1773597480105,0.041715,71906.0,71893.0,0.0726471]
[1773597480812,0.041715,71906.0,71894.0,0.0726471]
[1773597481011,0.041713,71908.0,71895.0,0.0726471]
[1773597481404,0.041714,71907.0,71895.0,0.0726471]
[1773597481605,0.041714,71907.0,71893.0,0.041722]
[1773597482413,0.041715,71906.0,71893.0,0.041722]
[1773597483814,0.041715,71905.0,71893.0,0.041722]
[1773597485002,0.0014,71909.0,71888.0,0.0726471]
[1773597485202,0.08711115,71903.0,71888.0,0.0726471]
[1773597485406,0.0014,71902.0,71891.0,0.041723]
[1773597485810,0.0014,71902.0,71893.0,0.041722]
[1773597487316,0.0014,71902.0,71894.0,0.041721]
[1773597487503,0.08711115,71910.0,71891.0,0.0726471]
[1773597487705,0.041714,71907.0,71894.0,0.041721]
[1773597488012,0.0014,71909.0,71894.0,0.041721]
[1773597488214,0.041715,71905.0,71892.0,0.1143691]
[1773597488418,0.041715,71905.0,71893.0,0.041722]
[1773597489716,0.0014,71909.0,71892.0,0.0726471]
[1773597489918,0.041715,71905.0,71892.0,0.1143691]
[1773597491317,0.041715,71905.0,71892.0,0.041722]
[1773597492018,0.08711115,71902.0,71889.0,0.041724]
[1773597492220,0.0014,71901.0,71889.0,0.041724]
[1773597492619,0.0014,71901.0,71883.0,0.0726471]
[1773597492820,0.08712182,71900.0,71883.0,0.0726471]
[1773597493019,0.08712182,71900.0,71887.0,0.041725]
[1773597493221,0.12883982,71900.0,71887.0,0.041725]
[1773597493713,0.12883982,71900.0,71887.0,0.0726471]
[1773597493714,0.041719,71899.0,71887.0,0.0726471]
[1773597493915,0.041719,71899.0,71885.0,0.041726]
[1773597494314,0.041719,71899.0,71886.0,0.1143731]
[1773597495325,0.041719,71898.0,71886.0,0.1143731]
[1773597495626,0.12883982,71900.0,71889.0,0.0726471]
[1773597496417,0.08712182,71900.0,71889.0,0.0726471]
[1773597496725,0.04172,71897.0,71885.0,0.0726471]
[1773597496917,0.08712182,71900.0,71885.0,0.0726471]
[1773597497524,0.04172,71896.0,71885.0,0.0726471]
[1773597498528,0.041719,71898.0,71886.0,0.0726471]
[1773597498731,0.04172,71897.0,71886.0,0.0726471]
[1773597501922,0.04172,71896.0,71886.0,0.0726471]
[1773597502925,0.041721,71895.0,71883.0,0.041727]
[1773597503229,0.0014,71894.0,71884.0,0.041727]
[1773597503929,0.0014,71894.0,71885.0,0.07036606]
[1773597504427,0.0014,71894.0,71878.0,0.07036606]
[1773597504725,0.041724,71891.0,71878.0,0.07036606]
[1773597505522,0.0014,71894.0,71878.0,0.07036606]
[1773597505730,0.041723,71891.0,71879.0,0.04173]
[1773597505928,0.0014,71894.0,71880.0,0.07036606]
[1773597506924,0.041723,71891.0,71880.0,0.07036606]
[1773597507529,0.0014,71890.0,71880.0,0.07036606]
[1773597508231,0.041723,71891.0,71880.0,0.07136606]
[1773597508523,0.0014,71890.0,71880.0,0.07136606]
[1773597508718,0.041723,71891.0,71880.0,0.07136606]
[1773597508926,0.0014,71890.0,71880.0,0.07136606]
[1773597509320,0.0014,71889.0,71880.0,0.07136606]
[1773597510020,0.041723,71891.0,71880.0,0.07136606]
[1773597510226,0.0014,71890.0,71880.0,0.07136606]
[1773597510629,0.0014,71889.0,71880.0,0.07136606]
[1773597511031,0.08712182,71890.0,71880.0,0.07036606]
[1773597511233,0.0014,71889.0,71880.0,0.07036606]
[1773597511528,0.08712182,71890.0,71880.0,0.07036606]
[1773597511827,0.041726,71887.0,71873.0,0.23541181]
[1773597512026,0.08712182,71883.0,71875.0,0.041732]
[1773597512327,0.041725,71888.0,71875.0,0.041732]
[1773597512533,0.041725,71888.0,71876.0,0.041731]
[1773597512721,0.041726,71887.0,71870.0,0.07036606]
[1773597513028,0.043125,71889.0,71868.0,0.00012462]
[1773597513234,0.043125,71889.0,71869.0,0.07036606]
[1773597513527,0.041725,71888.0,71875.0,0.041732]
[1773597513733,0.08712182,71885.0,71876.0,0.041731]
[1773597513918,0.08712182,71886.0,71876.0,0.041731]
[1773597515125,0.08712182,71886.0,71874.0,0.041733]
[1773597515326,0.08712182,71884.0,71869.0,0.07036606]
[1773597515526,0.08712182,71880.0,71869.0,0.07036606]
[1773597515722,0.0014,71879.0,71869.0,0.07036606]
[1773597516334,0.0014,71879.0,71876.0,0.041731]
[1773597517038,0.0014,71879.0,71869.0,0.07036606]
[1773597519242,9.6e-07,71877.0,71868.0,0.00012462]
[1773597519437,0.0014,71879.0,71875.0,0.041732]
[1773597519640,0.0014,71878.0,71875.0,0.041732]
[1773597519834,0.08712182,71885.0,71875.0,0.041732]
[1773597520146,0.12884582,71890.0,71878.0,0.11209606]
[1773597520346,0.0014,71889.0,71878.0,0.11209606]
[1773597520744,0.0014,71889.0,71878.0,0.04173]
[1773597521046,0.0014,71889.0,71868.0,0.00012462]
[1773597521047,0.043125,71889.0,71876.0,0.041732]
[1773597523444,0.041725,71888.0,71876.0,0.041732]
[1773597524851,0.0014,71889.0,71874.0,0.11209906]
[1773597524852,0.08712182,71886.0,71874.0,0.11209906]
[1773597525147,0.041726,71887.0,71874.0,0.11209906]
[1773597526350,0.041726,71887.0,71875.0,0.041732]
[1773597527053,0.043125,71889.0,71875.0,0.041732]
[1773597527353,0.041725,71888.0,71875.0,0.041732]
[1773597528854,0.041725,71888.0,71875.0,0.11209806]
[1773597531150,0.0014,71889.0,71875.0,0.11209806]
[1773597532940,0.08712182,71885.0,71869.0,0.06990145]
[1773597533251,0.08712182,71885.0,71868.0,0.00012462]
[1773597533252,0.08712182,71880.0,71868.0,0.00012462]
[1773597533549,0.0014,71879.0,71868.0,0.00012462]
[1773597536953,0.07458722,71879.0,71868.0,0.00012462]
[1773597537254,0.07458722,71879.0,71860.0,0.06990145]
[1773597537255,0.041731,71878.0,71863.0,0.041739]
[1773597537453,0.041732,71877.0,71863.0,0.041739]
[1773597537653,0.041733,71875.0,71861.0,0.04174]
[1773597537855,0.08712182,71871.0,71860.0,0.06990145]
[1773597538051,0.0014,71870.0,71862.0,0.04174]
[1773597538359,0.00012462,71869.0,71862.0,0.04174]
[1773597538858,0.00012462,71869.0,71860.0,0.06990145]
[1773597539551,0.00012462,71869.0,71860.0,0.041741]
[1773597539744,0.00012462,71869.0,71853.0,0.06990145]
[1773597540056,0.00012462,71869.0,71857.0,0.06990145]
[1773597541256,0.041737,71867.0,71857.0,0.06990145]
[1773597541452,0.041737,71867.0,71853.0,0.041745]
[1773597541957,0.041737,71867.0,71854.0,0.041744]
[1773597542750,0.00012462,71869.0,71854.0,0.041744]
[1773597543051,0.041738,71866.0,71854.0,0.041744]
[1773597543442,0.041737,71868.0,71848.0,0.06990145]
[1773597544047,0.041737,71867.0,71853.0,0.11164645]
[1773597544755,0.00012462,71869.0,71850.0,0.08712182]
[1773597545059,0.0014,71868.0,71863.0,0.06990145]
[1773597545357,0.0014,71867.0,71863.0,0.06990145]
[1773597545752,0.041728,71883.0,71869.0,0.06990145]
[1773597546054,0.041729,71881.0,71869.0,0.06990145]
[1773597546253,0.04313,71880.0,71869.0,0.06990145]
[1773597546648,0.13025182,71880.0,71869.0,0.06990145]
[1773597546849,0.13025182,71880.0,71868.0,0.041736]
[1773597547449,0.13025182,71880.0,71869.0,0.06990145]
[1773597549550,0.04313,71880.0,71869.0,0.06990145]
[1773597550255,0.13025182,71880.0,71869.0,0.06990145]
[1773597550458,0.13025182,71880.0,71866.0,0.041737]
[1773597551958,0.13025182,71880.0,71867.0,0.041737]
[1773597552658,0.07318722,71875.0,71855.0,0.07130145]
[1773597552859,0.08712182,71870.0,71855.0,0.07130145]
[1773597553046,0.0014,71870.0,71862.0,0.04174]
[1773597553759,0.0014,71870.0,71863.0,0.041739]
[1773597554667,0.0014,71869.0,71860.0,0.06990145]
[1773597554966,0.0014,71870.0,71860.0,0.06990145]
[1773597555167,0.0014,71870.0,71864.0,0.041738]
[1773597556662,0.0014,71870.0,71862.0,0.04174]
[1773597557770,0.0014,71870.0,71863.0,0.041739]
[1773597562962,0.0014,71870.0,71861.0,0.04174]
[1773597564373,0.0014,71870.0,71857.0,0.06990145]
[1773597564975,0.08857069,71870.0,71857.0,0.06990145]
[1773597565269,0.08857069,71870.0,71860.0,0.041741]
[1773597565960,0.08857069,71870.0,71853.0,0.06631678]
[1773597566266,0.0014,71874.0,71870.0,0.06631678]
[1773597566771,0.041736,71870.0,71857.0,0.041743]
[1773597567465,0.08717069,71870.0,71853.0,0.06631678]
[1773597567765,0.041733,71875.0,71851.0,0.06631678]
[1773597567971,0.0014,71874.0,71851.0,0.06631678]
[1773597568960,0.0014,71874.0,71863.0,0.10805578]
[1773597569566,0.0014,71874.0,71850.0,0.08717069]
[1773597569567,0.07234154,71893.0,71864.0,0.08717069]
[1773597569874,0.0014,71892.0,71872.0,0.06631678]
[1773597570067,0.041721,71896.0,71876.0,0.06631678]
[1773597570269,0.0014,71896.0,71877.0,0.06631678]
[1773597570478,0.0014,71895.0,71880.0,0.10804578]
[1773597571769,0.041722,71894.0,71880.0,0.041729]
[1773597571966,0.08717069,71890.0,71880.0,0.041729]
[1773597572767,0.041722,71894.0,71880.0,0.041729]
[1773597573365,0.041722,71893.0,71878.0,0.041731]
[1773597573562,0.08717069,71890.0,71871.0,0.06631678]
[1773597573765,0.08717069,71890.0,71879.0,0.04173]
[1773597577181,0.08717069,71890.0,71880.0,0.041729]
[1773597577384,0.08717069,71890.0,71870.0,0.06631678]
[1773597578084,0.08717069,71890.0,71879.0,0.04173]
[1773597580285,0.08717069,71890.0,71880.0,0.041729]
[1773597581869,0.08717069,71890.0,71879.0,0.04173]
[1773597583878,0.15951223,71890.0,71879.0,0.04173]
[1773597584091,0.20123623,71890.0,71877.0,0.041731]
[1773597584387,0.20123623,71890.0,71878.0,0.04173]
[1773597584680,0.041723,71892.0,71879.0,0.04173]
[1773597584882,0.08717069,71890.0,71879.0,0.04173]
[1773597585079,0.15951223,71890.0,71879.0,0.04173]
[1773597588181,0.041724,71889.0,71876.0,0.041731]
[1773597588389,0.0014,71888.0,71876.0,0.041731]
[1773597588579,0.08717069,71886.0,71873.0,0.041733]
[1773597588779,0.08717069,71883.0,71874.0,0.041733]
[1773597588985,0.11406754,71887.0,71875.0,0.041732]
[1773597589182,0.07234154,71887.0,71875.0,0.041732]
[1773597591489,0.11406754,71887.0,71875.0,0.041732]
[1773597591689,0.07234154,71884.0,71869.0,0.041736]
[1773597591884,0.08717069,71880.0,71862.0,0.0014]
[1773597592088,0.0014,71879.0,71862.0,0.0670731]
[1773597593082,0.0014,71879.0,71870.0,0.041735]
[1773597593282,0.0014,71879.0,71862.0,0.0670731]
[1773597594295,0.0014,71879.0,71868.0,0.041736]
[1773597594591,0.0014,71879.0,71862.0,0.0670731]
[1773597594592,0.07018554,71878.0,71867.0,0.041737]
[1773597594899,0.0014,71879.0,71867.0,0.041737]
[1773597598096,0.04313,71879.0,71867.0,0.041737]
[1773597598587,0.041731,71878.0,71867.0,0.041737]
[1773597598985,0.041731,71878.0,71859.0,0.0656731]
[1773597599186,0.041731,71877.0,71864.0,0.041738]
[1773597599585,0.041731,71877.0,71865.0,0.041738]
[1773597600011,0.04313,71879.0,71863.0,0.0656731]
[1773597600301,0.0014,71879.0,71865.0,0.041738]
[1773597600499,0.0014,71879.0,71863.0,0.0656731]
[1773597600693,0.0014,71890.0,71877.0,0.0656731]
[1773597600898,0.0014,71897.0,71880.0,0.08717069]
[1773597601086,0.25,71900.0,71878.0,0.0656731]
[1773597601289,0.0014,71906.0,71882.0,0.0656731]
[1773597601488,0.0014,71922.0,71908.0,0.0656731]
[1773597601688,0.043101,71930.0,71917.0,0.0656731]
[1773597601899,0.04426296,71929.0,71917.0,0.0656731]
[1773597602197,0.043102,71929.0,71915.0,0.1073821]
[1773597602984,0.09758568,71955.0,71916.0,0.0656731]
[1773597603181,0.07018554,71965.0,71925.0,0.0656731]
[1773597603387,0.041692,71946.0,71930.0,0.0656731]
[1773597603596,0.0014,71945.0,71930.0,0.0656731]
[1773597603892,0.041689,71951.0,71932.0,0.0656731]
[1773597604098,0.041688,71951.0,71932.0,0.0656731]
[1773597604599,0.07018554,71937.0,71914.0,0.0670731]
[1773597604897,0.07018554,71937.0,71918.0,0.041707]
[1773597604898,0.041698,71934.0,71918.0,0.041707]
[1773597605103,0.041698,71935.0,71920.0,0.041706]
[1773597605398,0.0014,71936.0,71920.0,0.041706]
[1773597607197,0.0014,71936.0,71920.0,0.1073791]
[1773597607698,0.0014,71936.0,71921.0,0.0656731]
[1773597608091,0.0014,71936.0,71918.0,0.0014]
[1773597608092,0.0014,71936.0,71927.0,0.0656731]
[1773597608394,0.0014,71936.0,71923.0,0.1073771]
[1773597608696,0.0014,71936.0,71892.0,0.16495051]
[1773597608697,0.07018554,71935.0,71909.0,0.0014]
[1773597608888,0.07018554,71935.0,71909.0,0.043113]
[1773597609192,0.041704,71924.0,71909.0,0.041713]
[1773597609394,0.043105,71923.0,71907.0,0.041714]
[1773597609600,0.0014,71922.0,71907.0,0.0656731]
[1773597609782,0.0014,71921.0,71908.0,0.0656731]
[1773597610099,0.041703,71925.0,71908.0,0.0656731]
[1773597610293,0.0014,71926.0,71908.0,0.1073861]
[1773597610597,0.07018554,71924.0,71899.0,0.0656731]
[1773597610795,0.041708,71918.0,71902.0,0.041716]
[1773597610994,0.04171,71913.0,71900.0,0.0014]
[1773597611186,0.04171,71914.0,71899.0,0.1073911]
[1773597611387,0.041711,71912.0,71897.0,0.041719]
[1773597611587,0.041712,71911.0,71896.0,0.04172]
[1773597611788,0.041712,71911.0,71893.0,0.0014]
[1773597611789,0.0014,71910.0,71889.0,0.0656731]
[1773597611998,0.041714,71908.0,71889.0,0.0656731]
[1773597612306,0.07158554,71909.0,71889.0,0.0656731]
[1773597612307,0.07018554,71909.0,71889.0,0.0656731]
[1773597612598,0.0014,71910.0,71889.0,0.0656731]
[1773597612996,0.0014,71910.0,71895.0,0.1073931]
[1773597613689,0.043113,71910.0,71895.0,0.1073931]
[1773597613999,0.0014,71910.0,71889.0,0.0656731]
[1773597614191,0.041714,71908.0,71892.0,0.041722]
[1773597614390,0.041714,71908.0,71889.0,0.0656731]
[1773597615298,0.041714,71906.0,71891.0,0.041723]
[1773597615498,0.041714,71906.0,71892.0,0.041722]
[1773597615689,0.041713,71909.0,71894.0,0.041721]
[1773597615890,0.041714,71908.0,71894.0,0.041721]
[1773597616092,0.041715,71906.0,71891.0,0.041723]
[1773597616292,0.07018554,71909.0,71889.0,0.0656731]
[1773597616496,0.07018554,71909.0,71887.0,0.0014]
[1773597617091,0.07018554,71909.0,71887.0,0.0670731]
[1773597617293,0.07018554,71903.0,71882.0,0.0656731]
[1773597617496,0.07018554,71899.0,71882.0,0.0014]
[1773597617704,0.0014,71898.0,71883.0,0.0670731]
[1773597618392,0.0014,71898.0,71887.0,0.041725]
[1773597619396,0.0014,71898.0,71883.0,0.0656731]
[1773597620899,0.0014,71898.0,71887.0,0.041725]
[1773597621405,0.0014,71898.0,71889.0,0.041724]
[1773597621700,0.0014,71899.0,71889.0,0.1073971]
[1773597622287,0.08710721,71920.0,71889.0,0.1073971]
[1773597622288,0.0014,71900.0,71890.0,0.06959296]
[1773597623390,0.0014,71900.0,71882.0,0.0014]
[1773597623594,0.07249667,71900.0,71882.0,0.0014]
[1773597624094,0.07249667,71900.0,71882.0,0.041728]
[1773597624404,0.041719,71899.0,71879.0,0.06977189]
[1773597624595,0.041719,71899.0,71886.0,0.041726]
[1773597624907,0.07109667,71899.0,71881.0,0.041729]
[1773597625201,0.07109667,71899.0,71882.0,0.041728]
[1773597625396,0.07109667,71899.0,71879.0,0.00017893]
[1773597625592,0.041719,71898.0,71885.0,0.041726]
[1773597625793,0.041719,71898.0,71879.0,0.06977189]
[1773597625794,0.04172,71897.0,71883.0,0.041727]
[1773597626399,0.041721,71896.0,71883.0,0.041727]
[1773597626598,0.0014,71900.0,71862.0,0.06959296]
[1773597626599,0.041727,71885.0,71862.0,0.06959296]
[1773597626805,0.0014,71884.0,71871.0,0.041734]
[1773597627003,0.0014,71883.0,71871.0,0.041734]
[1773597627700,0.00013171,71882.0,71871.0,0.041734]
[1773597628004,0.00013171,71882.0,71869.0,0.041736]
[1773597628206,0.04186071,71882.0,71869.0,0.041736]
[1773597628804,0.04186071,71882.0,71860.0,0.08854951]
[1773597628805,0.00013171,71882.0,71870.0,0.041735]
[1773597629101,0.00013171,71882.0,71868.0,0.041736]
[1773597629901,0.041729,71881.0,71869.0,0.041736]
[1773597630706,0.00013171,71882.0,71870.0,0.041735]
[1773597631801,0.07122838,71882.0,71860.0,0.0014]
[1773597632007,0.07109667,71878.0,71855.0,0.0014]
[1773597632212,0.07109667,71878.0,71854.0,0.06959296]
[1773597632213,0.041736,71870.0,71854.0,0.06959296]
[1773597632400,0.00016003,71869.0,71854.0,0.0014]
[1773597632801,0.0712567,71869.0,71852.0,0.041745]
[1773597632996,0.041739,71864.0,71849.0,0.041747]
[1773597633198,0.00015908,71863.0,71851.0,0.041746]
[1773597633400,0.00056398,71862.0,71852.0,0.06959296]
[1773597633897,0.00056398,71862.0,71852.0,0.11133796]
[1773597634102,0.00056398,71862.0,71853.0,0.041745]
[1773597635598,0.00056398,71862.0,71849.0,0.06959296]
[1773597635799,0.00056398,71862.0,71845.0,0.06959296]
[1773597636107,0.00056398,71862.0,71846.0,0.07099296]
[1773597636506,0.00056398,71862.0,71850.0,0.041747]
[1773597636806,0.00056398,71862.0,71851.0,0.041746]
[1773597637004,0.07109667,71861.0,71851.0,0.041746]
[1773597637306,0.00015908,71863.0,71851.0,0.11133896]
[1773597637499,0.0014,71865.0,71851.0,0.06959296]
[1773597637701,0.0014,71865.0,71854.0,0.06959296]
[1773597637896,0.0014,71865.0,71853.0,0.041745]
[1773597638104,0.04174,71862.0,71845.0,0.06959296]
[1773597638907,0.041741,71861.0,71848.0,0.041748]
[1773597639108,0.07249667,71865.0,71845.0,0.06959296]
[1773597639608,0.041739,71864.0,71850.0,0.041747]
[1773597639914,0.0014,71865.0,71848.0,0.041748]
[1773597639915,0.07249667,71865.0,71848.0,0.041748]
[1773597640307,0.04174,71862.0,71843.0,0.06959296]
[1773597640510,0.04174,71862.0,71843.0,0.07099296]
[1773597640696,0.041741,71861.0,71844.0,0.06959296]
[1773597640904,0.07109667,71864.0,71847.0,0.041748]
[1773597641210,0.04174,71862.0,71845.0,0.06959296]
[1773597641400,0.041741,71861.0,71848.0,0.041748]
[1773597642016,0.041741,71860.0,71848.0,0.041748]
[1773597642421,0.041741,71860.0,71846.0,0.041749]
[1773597642913,0.041741,71860.0,71847.0,0.041748]
[1773597644415,0.041742,71859.0,71847.0,0.041748]
[1773597644614,0.0014,71858.0,71847.0,0.041748]
[1773597646513,0.07109667,71857.0,71834.0,0.07706885]
[1773597646712,0.041744,71856.0,71843.0,0.041751]
[1773597646913,0.07109667,71857.0,71835.0,0.33624651]
[1773597646914,0.041745,71854.0,71841.0,0.041752]
[1773597647424,0.041745,71853.0,71841.0,0.041752]
[1773597648712,0.07109667,71857.0,71838.0,0.041754]
[1773597648914,0.08724289,71851.0,71839.0,0.041753]
[1773597649105,0.0014,71850.0,71839.0,0.041753]
[1773597650312,0.043147,71850.0,71837.0,0.041754]
[1773597651005,0.0014,71850.0,71840.0,0.041752]
[1773597651819,0.0014,71850.0,71833.0,0.0014]
[1773597652407,0.08724289,71843.0,71837.0,0.041754]
[1773597652607,0.13038989,71850.0,71837.0,0.041754]
[1773597652810,0.19977886,71850.0,71837.0,0.041754]
[1773597653011,0.041749,71847.0,71835.0,0.041755]
[1773597653217,0.08724289,71845.0,71835.0,0.041755]
[1773597653420,0.08724289,71845.0,71833.0,0.041756]
[1773597653615,0.08724289,71843.0,71834.0,0.041756]
[1773597653917,0.041748,71848.0,71834.0,0.041756]
[1773597654407,0.041748,71848.0,71835.0,0.041755]
[1773597655424,0.041752,71842.0,71829.0,0.041759]
[1773597655715,0.041741,71861.0,71814.0,0.041768]
[1773597655716,0.06938897,71857.0,71840.0,0.041752]
[1773597655924,0.0014,71856.0,71841.0,0.041752]
[1773597656222,0.0014,71856.0,71836.0,0.06816195]
[1773597656223,0.041745,71854.0,71842.0,0.041751]
[1773597656520,0.00012268,71853.0,71842.0,0.041751]
[1773597656917,0.041747,71851.0,71837.0,0.041754]
[1773597657219,0.041747,71851.0,71839.0,0.041753]
[1773597658120,0.15663186,71852.0,71840.0,0.041752]
[1773597658322,0.0014,71851.0,71840.0,0.041752]
[1773597659720,0.043147,71851.0,71838.0,0.041754]
[1773597659919,0.06938897,71847.0,71836.0,0.041755]
[1773597660115,0.08735483,71846.0,71828.0,0.06816195]
[1773597660418,0.08735483,71846.0,71829.0,0.2660801]
[1773597660419,0.08724289,71842.0,71829.0,0.2660801]
[1773597660621,0.0014,71841.0,71834.0,0.041756]
[1773597661922,0.06938897,71878.0,71845.0,0.06816195]
[1773597662227,0.041743,71857.0,71844.0,0.04175]
[1773597662431,0.0014,71856.0,71844.0,0.04175]
[1773597662621,0.041745,71855.0,71842.0,0.041751]
[1773597662826,0.06938897,71852.0,71841.0,0.041752]
[1773597663128,0.06938897,71852.0,71830.0,0.16495051]
[1773597663129,0.041748,71848.0,71835.0,0.041755]
[1773597663426,0.06938897,71846.0,71834.0,0.041756]
[1773597663624,7.826e-05,71845.0,71835.0,0.041755]
[1773597668029,7.826e-05,71845.0,71836.0,0.041755]
[1773597670028,7.826e-05,71845.0,71837.0,0.041754]
[1773597671034,0.11121723,71845.0,71831.0,0.041757]
[1773597671526,0.06946723,71845.0,71829.0,0.041759]
[1773597671726,0.041751,71843.0,71830.0,0.041758]
[1773597672720,0.06938897,71855.0,71841.0,0.041752]
[1773597672930,0.041746,71852.0,71830.0,0.08724289]
[1773597673127,0.0014,71851.0,71839.0,0.041753]
[1773597673930,0.043147,71851.0,71839.0,0.041753]
[1773597675434,0.0014,71858.0,71853.0,0.041745]
[1773597675631,0.48501579,71894.0,71848.0,0.08724289]
[1773597675831,0.08724289,71880.0,71872.0,0.041734]
[1773597676036,0.0014,71879.0,71872.0,0.041734]
[1773597676536,0.0014,71879.0,71863.0,0.06816195]
[1773597676732,0.0014,71879.0,71867.0,0.041737]
[1773597676932,0.06938897,71878.0,71855.0,0.06816195]
[1773597677232,0.06938897,71878.0,71866.0,0.041737]
[1773597677534,0.0014,71879.0,71866.0,0.041737]
[1773597677833,0.0024,71879.0,71866.0,0.041737]
[1773597678428,0.041732,71876.0,71863.0,0.041739]
[1773597679227,0.07078897,71879.0,71859.0,0.041741]
[1773597679423,0.07038897,71878.0,71859.0,0.041741]
[1773597679829,0.041735,71871.0,71859.0,0.041741]
[1773597680031,0.0014,71870.0,71859.0,0.041741]
[1773597682034,0.043136,71870.0,71857.0,0.041743]
[1773597682340,0.0014,71870.0,71851.0,0.06956195]
[1773597682736,0.0014,71870.0,71852.0,0.06476232]
[1773597683038,0.041736,71869.0,71855.0,0.041744]
[1773597683239,0.041736,71869.0,71856.0,0.041743]
[1773597683443,0.041737,71868.0,71856.0,0.041743]
[1773597684128,0.06771995,71870.0,71850.0,0.06476232]
[1773597684336,0.06631995,71863.0,71848.0,0.041748]
[1773597684642,0.0014,71862.0,71848.0,0.041748]
[1773597684946,0.06771995,71862.0,71848.0,0.041748]
[1773597685937,0.06771995,71862.0,71839.0,0.06476232]
[1773597686138,0.10806195,71859.0,71846.0,0.041749]
[1773597687346,0.041743,71858.0,71846.0,0.041749]
[1773597688441,0.041743,71858.0,71844.0,0.04175]
[1773597688642,0.06631995,71858.0,71836.0,0.06476232]
[1773597688950,0.06631995,71858.0,71836.0,0.06616232]
[1773597689245,0.06631995,71856.0,71836.0,0.06476232]
[1773597689441,0.041744,71855.0,71842.0,0.041751]
[1773597689642,0.041744,71855.0,71836.0,0.06476232]
[1773597689643,0.0014,71854.0,71843.0,0.041751]
[1773597692047,0.043145,71854.0,71841.0,0.041752]
[1773597692452,0.041746,71852.0,71839.0,0.041753]
[1773597692748,0.041747,71851.0,71839.0,0.041753]
[1773597693049,0.041747,71849.0,71837.0,0.041754]
[1773597694347,0.0014,71866.0,71832.0,0.06476232]
[1773597694644,0.0014,71872.0,71839.0,0.041753]
[1773597694836,0.0014,71871.0,71858.0,0.041742]
[1773597695044,0.043135,71871.0,71858.0,0.041742]
[1773597695848,0.0014,71871.0,71857.0,0.06476232]
[1773597696048,0.0014,71871.0,71861.0,0.04174]
[1773597696243,0.0024,71871.0,71861.0,0.04174]
[1773597696449,0.0014,71870.0,71861.0,0.04174]
[1773597697352,0.0014,71869.0,71859.0,0.041741]
[1773597697549,0.06631995,71880.0,71858.0,0.06476232]
[1773597697851,0.06771995,71879.0,71854.0,0.0014]
[1773597698046,0.041732,71876.0,71863.0,0.041739]
[1773597698253,0.0014,71879.0,71860.0,0.06476232]
[1773597698451,0.0014,71879.0,71855.0,0.0014]
[1773597698647,0.04313,71879.0,71865.0,0.041738]
[1773597699653,0.04413,71879.0,71865.0,0.041738]